bitfinex-derivatives/quotes_ETHF0:USTF0_20241229
["timestamp","ask_amount","ask_price","bid_price","bid_amount"]
[1735476286281,0.29505,3394.4,3394.3,1.46206]
[1735476290378,3.46321939,3394.5,3394.3,1.167]
[1735476290580,0.29505,3394.4,3394.3,1.46206]
[1735476291679,0.29505,3394.4,3394.3,1.45706]
[1735476295077,3.75826939,3394.4,3394.3,1.45706]
[1735476297987,0.29505,3394.4,3394.3,1.45706]
[1735476298687,4.89193766,3394.5,3394.4,0.29505]
[1735476303398,0.29505,3394.4,3394.3,1.162]
[1735476304692,6.05216866,3394.4,3394.3,1.162]
[1735476306388,0.29505,3394.4,3394.3,1.162]
[1735476306687,3.50285,3394.4,3394.3,1.162]
[1735476312298,0.29505,3394.4,3394.3,1.162]
[1735476312797,3.50285,3394.4,3394.3,1.162]
[1735476318709,0.29505,3394.4,3394.3,1.162]
[1735476319206,3.50285,3394.4,3394.3,1.162]
[1735476320308,0.29505,3394.4,3394.3,1.162]
[1735476320515,3.50285,3394.4,3394.3,1.162]
[1735476321401,3.50285,3394.4,3394.3,1.45706]
[1735476322508,0.29505,3394.4,3394.3,1.45706]
[1735476322811,3.50285,3394.4,3394.3,1.45706]
[1735476323110,3.2078,3394.4,3394.3,1.45706]
[1735476323508,3.2078,3394.4,3394.3,0.29506]
[1735476323909,3.50285,3394.4,3394.3,0.29506]
[1735476324209,4.17095,3394.4,3394.3,0.29506]
[1735476324707,3.8759,3394.4,3394.3,0.29506]
[1735476325509,4.17095,3394.4,3394.3,0.29506]
[1735476325709,0.29506,3394.3,3394.2,1.45407]
[1735476325909,0.7328,3394.3,3393.8,4.6324222]
[1735476326112,0.7328,3394.3,3393.8,5.7914222]
[1735476326113,3.5029,3393.9,3393.8,5.7914222]
[1735476326609,3.5029,3393.9,3393.8,6.0865322]
[1735476326798,3.5029,3393.9,3393.8,5.7914222]
[1735476327003,3.5029,3393.9,3393.8,6.0865322]
[1735476327709,9.28760427,3393.9,3393.8,1.45411]
[1735476328600,9.28760427,3393.9,3393.8,1.159]
[1735476328807,0.29513,3393.5,3393.4,4.9275622]
[1735476329009,0.29513,3393.5,3393.4,6.0865622]
[1735476329404,3.50293,3393.5,3393.4,4.9275622]
[1735476329910,3.2078,3393.5,3393.4,0.29514]
[1735476331113,5.78470427,3393.6,3393.5,0.29513]
[1735476331313,5.78470427,3393.6,3393.5,0.96973]
[1735476331514,5.78470427,3393.7,3393.6,0.29512]
[1735476331715,5.78470427,3393.7,3393.6,41.09512]
[1735476332618,4.62475972,3393.8,3393.7,0.29512]
[1735476333410,4.62475972,3393.8,3393.7,41.09512]
[1735476333814,3.46870918,3393.8,3393.7,41.09512]
[1735476336113,3.46870918,3393.8,3393.7,0.29512]
[1735476336613,3.46870918,3393.8,3393.7,41.09512]
[1735476337716,0.6691,3393.8,3393.7,41.09512]
[1735476340210,0.6691,3393.8,3393.7,0.29512]
[1735476340405,0.96421,3393.8,3393.7,0.29512]
[1735476340613,0.6691,3393.8,3393.7,0.29512]
[1735476341513,0.96421,3393.8,3393.7,0.29512]
[1735476341922,0.6691,3393.8,3393.3,46.5914222]
[1735476342218,3.2078,3393.4,3393.3,4.9275622]
[1735476342422,3.2078,3393.4,3393.3,1.45414]
[1735476342609,4.595,3393.4,3393.3,1.45414]
[1735476342815,0.29515,3393.3,3393.2,1.159]
[1735476343215,4.595,3393.4,3393.1,4.6324222]
[1735476343420,0.29516,3393.2,3393.1,46.5914222]
[1735476343816,0.29516,3393.2,3393.1,42.25417]
[1735476344310,0.29516,3393.2,3393.1,1.45417]
[1735476345132,4.91937714,3393.2,3393.1,1.45417]
[1735476345335,4.62421714,3393.2,3393.1,1.45417]
[1735476346232,4.62421714,3393.2,3393.1,4.66197]
[1735476346432,3.46597942,3393.2,3393.1,4.66197]
[1735476346630,2.35397942,3393.2,3393.1,9.66197]
[1735476348126,2.31112968,3393.7,3393.2,0.7379]
[1735476348330,2.31112968,3393.7,3393.6,0.29512]
[1735476348535,2.31112968,3393.7,3393.6,41.09512]
[1735476349435,3.2078,3393.9,3393.7,0.29512]
[1735476349436,2.31112968,3393.8,3393.7,0.29512]
[1735476350433,2.31112968,3393.8,3393.6,40.8]
[1735476350632,3.8848,3393.9,3393.5,1.159]
[1735476350633,0.29512,3393.6,3393.5,1.159]
[1735476352039,0.29512,3393.6,3393.5,0.0544]
[1735476352233,0.98362,3393.6,3393.5,0.0544]
[1735476353628,0.98362,3393.6,3393.5,0.34953]
[1735476354135,0.98362,3393.6,3393.5,0.0544]
[1735476355132,4.19142,3393.6,3393.5,0.0544]
[1735476355439,4.19142,3393.6,3393.5,0.34953]
[1735476357035,8.81167833,3393.6,3393.5,0.34953]
[1735476357741,8.81167833,3393.6,3393.5,0.0544]
[1735476357937,8.81167833,3393.6,3393.5,0.34953]
[1735476358337,4.19142,3393.6,3393.5,0.34953]
[1735476359441,3.2078,3393.6,3393.5,0.34953]
[1735476360935,5.51828995,3393.6,3393.5,0.34953]
[1735476362645,5.51828995,3393.6,3393.5,0.0544]
[1735476362849,5.81340995,3393.6,3393.5,0.0544]
[1735476363151,5.81340995,3393.6,3393.5,0.34953]
[1735476364050,8.12317833,3393.6,3393.5,0.34953]
[1735476364545,7.82805833,3393.6,3393.5,0.34953]
[1735476365251,3.2078,3393.6,3393.5,0.34953]
[1735476366747,5.35185833,3393.8,3393.7,0.29512]
[1735476366944,0.7316,3393.8,3393.7,0.29512]
[1735476371656,5.29725833,3393.9,3393.5,0.0544]
[1735476371855,5.29725833,3393.9,3393.8,0.29511]
[1735476372051,5.95135833,3393.9,3393.8,0.29511]
[1735476373152,1.3311,3393.9,3393.8,0.29511]
[1735476373554,1.3311,3393.9,3393.4,4.6363829]
[1735476373750,0.29513,3393.5,3393.4,4.6363829]
[1735476374451,0.29514,3393.4,3393.3,1.45515]
[1735476374647,1.64134,3393.4,3393.3,1.45515]
[1735476375154,0.29516,3393.3,3393.2,0.29515]
[1735476375354,1.00326,3393.3,3393.2,1.45515]
[1735476375757,0.7081,3393.3,3393.2,1.45515]
[1735476375950,1.00325,3393.3,3393.2,1.45515]
[1735476378660,1.00325,3393.3,3393.2,0.29515]
[1735476378962,1.00325,3393.3,3393.2,1.45515]
[1735476380266,5.62350833,3393.3,3393.2,1.45515]
[1735476381967,5.32835833,3393.3,3393.2,1.45515]
[1735476382668,4.62025833,3393.3,3393.2,1.45515]
[1735476383064,4.62025833,3393.5,3393.4,0.29514]
[1735476384268,5.52017605,3393.6,3393.3,0.672]
[1735476384567,5.52017605,3393.6,3393.5,0.29513]
[1735476385463,3.2078,3393.6,3393.5,0.29513]
[1735476386461,3.2078,3393.6,3393.5,1.45413]
[1735476390374,3.2078,3393.6,3393.5,6.0905129]
[1735476390671,2.31237605,3393.9,3393.5,5.7953829]
[1735476390874,2.31237605,3393.9,3393.8,3.50291]
[1735476391272,2.31237605,3393.9,3393.8,44.30291]
[1735476392275,4.62025833,3394.2,3394.1,0.29508]
[1735476392276,2.31237605,3394.2,3394.1,0.29508]
[1735476393274,1.24297605,3394.2,3394.1,5.29508]
[1735476393477,1.24297605,3394.3,3394.1,5.0]
[1735476393678,1.24297605,3394.3,3394.2,0.29507]
[1735476394267,1.24297605,3394.3,3394.2,3.50287]
[1735476394577,4.54776444,3394.6,3394.5,0.29505]
[1735476394877,4.54776444,3394.6,3394.5,1.45405]
[1735476395075,0.7022,3395.0,3394.9,0.29501]
[1735476395776,0.7022,3395.0,3394.9,41.09501]
[1735476397172,0.71,3395.3,3395.2,0.29499]
[1735476397877,0.6681,3395.4,3395.3,0.29498]
[1735476398071,0.6681,3395.4,3395.3,1.45398]
[1735476400982,0.6681,3395.4,3395.3,4.66178]
[1735476401180,0.6681,3395.4,3395.3,3.50278]
[1735476401379,0.6681,3395.4,3395.3,4.66178]
[1735476401681,0.6681,3395.4,3395.3,3.50278]
[1735476401879,0.6681,3395.4,3394.7,3.2078]
[1735476402179,0.6681,3395.4,3395.3,1.45398]
[1735476406578,0.6681,3395.4,3395.3,42.25398]
[1735476412487,1.2805,3396.2,3396.1,0.29491]
[1735476412686,1.2805,3396.2,3396.1,1.45391]
[1735476419295,1.2805,3396.2,3396.1,42.25391]
[1735476420697,1.2805,3396.2,3396.1,1.159]
[1735476421005,1.2805,3396.2,3396.1,0.40591]
[1735476421300,1.2805,3396.2,3396.1,1.159]
[1735476421596,1.2805,3396.2,3396.1,1.45391]
[1735476426101,1.2805,3396.2,3396.1,0.29491]
[1735476426303,1.2805,3396.2,3396.1,1.45391]
[1735476429299,3.2078,3396.7,3396.1,1.45391]
[1735476429501,1.294,3396.6,3396.1,1.45391]
[1735476429690,1.58887,3396.6,3396.4,0.29488]
[1735476429896,1.58886,3396.6,3396.5,0.29487]
[1735476430496,1.294,3396.6,3396.5,0.29487]
[1735476430705,1.294,3396.6,3396.2,40.8]
[1735476430900,1.294,3396.6,3396.1,1.159]
[1735476431101,0.29489,3396.3,3396.2,0.29489]
[1735476431299,0.29488,3396.4,3396.1,1.159]
[1735476431496,0.6214,3396.3,3396.2,41.0949]
[1735476433400,0.6214,3396.3,3396.1,1.159]
[1735476433606,0.6214,3396.3,3396.1,1.4539]
[1735476433607,0.2949,3396.2,3396.1,1.4539]
[1735476433801,0.6214,3396.3,3396.2,0.2949]
[1735476435409,0.6214,3396.3,3396.1,41.959]
[1735476435609,0.2949,3396.2,3396.1,42.2539]
[1735476436110,0.6214,3396.3,3396.2,0.2949]
[1735476436111,0.9163,3396.3,3396.2,0.2949]
[1735476436904,0.6214,3396.3,3396.2,0.2949]
[1735476439308,4.12409,3396.3,3396.2,0.2949]
[1735476439508,3.8292,3396.3,3396.1,41.959]
[1735476439709,3.8292,3396.3,3396.1,42.25391]
[1735476439710,0.6369,3396.2,3396.1,42.25391]
[1735476440111,0.6369,3396.2,3396.1,40.8]
[1735476440311,0.9318,3396.2,3396.1,42.25391]
[1735476440606,0.6369,3396.2,3396.1,42.25391]
[1735476441607,0.9318,3396.2,3396.1,42.25391]
[1735476441910,0.29494,3395.8,3395.7,0.29494]
[1735476442105,0.6369,3396.2,3395.5,4.6363829]
[1735476442106,0.29495,3395.6,3395.5,4.6363829]
[1735476442311,0.29495,3395.6,3395.5,5.7963829]
[1735476442810,0.29495,3395.6,3395.5,6.0913429]
[1735476443609,4.89818451,3395.6,3395.5,1.45496]
[1735476445313,7.68710427,3395.7,3395.5,1.16]
[1735476445614,7.98205427,3395.7,3395.6,0.29495]
[1735476446215,0.29495,3395.6,3395.5,0.29496]
[1735476447616,8.12693287,3395.6,3395.5,0.29496]
[1735476448814,7.83198287,3395.6,3395.5,0.29496]
[1735476450311,6.67566425,3395.6,3395.5,0.29496]
[1735476450716,6.97061425,3395.6,3395.5,0.29496]
[1735476450914,6.67566425,3395.6,3395.4,1.161]
[1735476451111,6.67566425,3395.6,3394.8,4.6363829]
[1735476451310,0.29501,3394.9,3394.8,4.6363829]
[1735476453020,3.76287425,3394.9,3394.8,0.29502]
[1735476454116,0.29501,3394.9,3394.8,0.29502]
[1735476454517,0.29502,3394.8,3394.7,1.45603]
[1735476454919,0.29502,3394.9,3394.7,1.45603]
[1735476456423,0.29502,3394.8,3394.7,1.161]
[1735476456923,0.29504,3394.6,3394.5,40.8]
[1735476457316,3.50284,3394.6,3394.5,40.8]
[1735476457511,3.50284,3394.6,3394.1,4.3688]
[1735476457512,0.29507,3394.3,3394.1,4.3688]
[1735476457712,0.6337,3394.2,3394.1,4.66388]
[1735476457919,0.92877,3394.2,3394.1,3.2078]
[1735476458222,0.92877,3394.2,3394.1,44.0078]
[1735476458716,0.92877,3394.2,3394.1,45.1688]
[1735476459119,0.6337,3394.2,3394.1,45.1688]
[1735476459414,1.42395,3394.5,3394.3,0.29506]
[1735476459727,1.7626,3394.5,3394.4,0.29505]
[1735476460722,2.05765,3394.5,3394.4,0.29505]
[1735476461123,1.7626,3394.5,3394.4,0.29505]
[1735476461321,2.05765,3394.5,3394.4,0.29505]
[1735476461517,1.7626,3394.5,3394.4,0.29505]
[1735476462026,1.2156,3394.5,3394.4,0.29505]
[1735476470329,1.51065,3394.5,3394.4,0.29505]
[1735476470832,1.2156,3394.5,3394.4,0.29505]
[1735476471927,1.2156,3394.5,3394.1,41.961]
[1735476472228,0.29507,3394.3,3394.2,0.29507]
[1735476472425,0.29507,3394.3,3394.2,1.45407]
[1735476474428,1.2156,3394.5,3394.2,1.159]
[1735476474628,0.29506,3394.4,3394.2,1.159]
[1735476474826,0.5724,3394.3,3394.2,1.45407]
[1735476476336,0.29507,3394.2,3394.1,40.8]
[1735476476634,0.29508,3394.1,3394.0,1.159]
[1735476476824,0.86318,3394.1,3394.0,1.159]
[1735476478836,0.86318,3394.1,3394.0,1.45409]
[1735476480036,0.86318,3394.1,3394.0,0.29509]
[1735476480535,0.5681,3394.1,3393.9,41.959]
[1735476480730,0.29509,3394.0,3393.9,42.25409]
[1735476481035,0.29509,3394.0,3393.9,40.8]
[1735476481336,0.29512,3393.7,3393.6,1.159]
[1735476481836,0.29512,3393.7,3393.6,41.959]
[1735476483824,0.29512,3393.7,3393.6,40.8]
[1735476484427,0.29512,3393.7,3393.5,4.66193]
[1735476484428,0.29512,3393.6,3393.5,4.66193]
[1735476484634,1.43122,3393.6,3393.5,1.45413]
[1735476485131,1.43122,3393.6,3393.5,1.159]
[1735476485434,1.43122,3393.6,3393.5,1.45413]
[1735476487738,4.03826425,3393.9,3393.5,1.159]
[1735476488037,4.56316425,3393.9,3393.8,0.29511]
[1735476488237,0.29512,3393.7,3393.6,0.29511]
[1735476488433,0.29512,3393.7,3393.6,41.09511]
[1735476488634,4.56316425,3393.9,3393.6,40.8]
[1735476488834,4.85826425,3393.9,3393.8,0.29511]
[1735476489138,1.0953,3393.9,3393.8,0.29511]
[1735476490839,1.0953,3393.9,3393.6,40.8]
[1735476491037,0.29512,3393.7,3393.6,41.09512]
[1735476491342,0.29512,3393.7,3393.6,0.29512]
[1735476491743,0.29512,3393.6,3393.5,1.45413]
[1735476492043,0.29513,3393.5,3393.4,0.29514]
[1735476492239,0.29513,3393.5,3393.4,1.45414]
[1735476493937,3.50293,3393.6,3393.5,0.29513]
[1735476494139,0.29513,3393.5,3393.4,1.45514]
[1735476494346,0.79233,3393.5,3393.4,1.45514]
[1735476495042,0.4972,3393.5,3393.2,40.8]
[1735476495241,0.78664,3393.4,3393.3,1.16]
[1735476496345,0.78664,3393.4,3393.3,1.45515]
[1735476496549,0.78664,3393.4,3393.3,1.16]
[1735476497038,0.29515,3393.3,3393.2,1.45515]
[1735476497242,0.75915,3393.3,3393.2,1.45515]
[1735476497439,0.75915,3393.3,3393.2,1.16]
[1735476498339,0.75915,3393.3,3393.2,1.45516]
[1735476501445,0.464,3393.3,3393.2,1.45516]
[1735476505654,3.94626425,3393.8,3393.2,4.3678]
[1735476505857,3.94626425,3393.8,3393.7,0.29512]
[1735476506047,4.43276425,3393.8,3393.7,0.29512]
[1735476507152,4.91836425,3393.8,3393.7,0.29512]
[1735476507354,0.9721,3393.8,3393.7,0.29512]
[1735476507554,0.4856,3393.8,3393.7,0.29512]
[1735476508951,0.4856,3393.8,3393.7,1.45512]
[1735476509258,0.4939,3394.1,3393.7,1.16]
[1735476509555,3.96256425,3394.2,3393.8,0.4137]
[1735476509751,3.96256425,3394.2,3394.1,0.29508]
[1735476511658,0.4947,3394.2,3394.1,0.29508]
[1735476513160,0.4947,3394.2,3394.1,41.09508]
[1735476513761,3.2078,3394.3,3394.1,40.8]
[1735476513958,3.2078,3394.3,3394.2,0.29507]
[1735476514762,3.97856425,3394.7,3394.6,0.29504]
[1735476514965,3.46786425,3394.7,3394.6,1.45404]
[1735476515758,3.2078,3394.8,3394.7,0.29503]
[1735476515759,2.31265627,3394.8,3394.7,0.29503]
[1735476515959,2.31265627,3394.8,3394.7,41.50893]
[1735476517162,3.2078,3395.2,3395.1,0.29499]
[1735476517463,0.9454,3395.3,3395.2,0.29499]
[1735476518063,0.9454,3395.3,3395.2,41.09499]
[1735476519661,2.31265627,3395.7,3395.6,0.29495]
[1735476519868,2.31265627,3395.7,3395.6,1.45395]
[1735476520164,2.31265627,3395.8,3395.7,0.29494]
[1735476521059,0.9745,3395.9,3395.7,0.29494]
[1735476523166,0.9745,3395.9,3395.8,0.29493]
[1735476524167,0.9745,3395.9,3395.6,1.159]
[1735476524369,0.9745,3395.9,3395.7,0.29494]
[1735476525670,0.9745,3395.9,3395.8,0.29493]
[1735476527764,0.9745,3395.9,3395.2,44.0078]
[1735476528071,0.29495,3395.7,3395.5,0.29496]
[1735476528272,0.29495,3395.7,3395.3,1.159]
[1735476528273,0.29494,3395.8,3395.6,0.29495]
[1735476528869,0.29494,3395.8,3395.6,1.45395]
[1735476530271,0.29494,3395.8,3395.6,0.29495]
[1735476530476,1.26943,3395.9,3395.7,0.29494]
[1735476530973,0.9745,3395.9,3395.8,0.29493]
[1735476532175,0.9745,3395.9,3395.8,1.45393]
[1735476532574,0.9745,3395.9,3395.8,0.29493]
[1735476532869,0.9745,3395.9,3395.8,1.45293]
[1735476534274,0.9745,3395.9,3395.8,42.25293]
[1735476537874,3.2078,3396.6,3396.5,0.29487]
[1735476539471,3.2078,3396.6,3396.1,0.73726]
[1735476539678,0.4734,3396.5,3396.4,0.29488]
[1735476545180,3.2078,3396.6,3396.1,0.73727]
[1735476545377,3.2078,3396.6,3396.5,0.29487]
[1735476545977,3.2078,3396.6,3396.5,41.09487]
[1735476546982,0.4541,3396.9,3396.5,40.8]
[1735476547180,0.4541,3396.9,3396.8,0.29485]
[1735476554392,0.29486,3396.7,3396.6,0.29486]
[1735476554591,0.29486,3396.7,3396.6,1.158]
[1735476554787,0.29486,3396.7,3396.6,1.45286]
[1735476555191,0.29486,3396.7,3396.6,1.158]
[1735476556088,0.29486,3396.7,3396.6,1.45286]
[1735476557998,3.50266,3396.7,3396.6,1.158]
[1735476559297,5.81531627,3396.7,3396.6,1.158]
[1735476561802,6.97052425,3396.7,3396.6,1.158]
[1735476562601,6.97052425,3396.7,3396.6,1.45286]
[1735476562996,6.97052425,3396.7,3396.6,1.158]
[1735476563406,3.50266,3396.7,3396.6,1.158]
[1735476564206,3.2078,3396.7,3396.6,1.45286]
[1735476564405,4.62418287,3396.8,3396.7,0.29485]
[1735476564805,4.62418287,3396.8,3396.7,41.09485]
[1735476566098,2.31293184,3396.8,3396.7,41.09485]
[1735476566908,2.60778184,3396.8,3396.7,40.8]
[1735476567313,0.29485,3396.8,3396.7,40.8]
[1735476567513,3.92349776,3396.9,3396.8,0.29485]
[1735476567514,4.21833776,3396.9,3396.8,0.29485]
[1735476567908,4.21833776,3396.9,3396.7,41.09485]
[1735476568307,4.21833776,3396.9,3396.7,40.8]
[1735476568512,0.74894,3396.9,3396.8,0.29485]
[1735476569009,0.4541,3396.9,3396.8,0.29485]
[1735476569206,0.74894,3396.9,3396.8,0.29485]
[1735476570213,0.4541,3396.9,3396.8,0.29485]
[1735476570912,0.74894,3396.9,3396.8,0.29485]
[1735476571112,4.21843907,3396.9,3396.8,0.29485]
[1735476572412,0.74894,3396.9,3396.8,0.29485]
[1735476572911,0.74894,3396.9,3396.7,0.29485]
[1735476572912,0.29485,3396.8,3396.7,0.29485]
[1735476573508,0.29485,3396.7,3396.6,40.8]
[1735476573713,0.29486,3396.6,3396.5,1.158]
[1735476574816,6.07956427,3396.6,3396.5,1.158]
[1735476575710,5.78470427,3396.6,3396.5,1.45287]
[1735476576812,6.07956427,3396.7,3396.6,0.29486]
[1735476577216,5.78470427,3396.7,3396.6,0.29486]
[1735476578022,0.29485,3396.7,3396.6,0.29486]
[1735476578219,0.29485,3396.7,3396.5,1.158]
[1735476578220,9.28735427,3396.8,3396.7,0.29485]
[1735476580419,8.99250427,3396.8,3396.5,1.158]
[1735476580624,8.99250427,3396.8,3396.7,0.29485]
[1735476582120,3.2078,3396.8,3396.7,0.29485]
[1735476585224,9.44660427,3396.9,3396.8,0.29485]
[1735476588222,3.6619,3396.9,3396.8,0.29485]
[1735476589718,0.4541,3396.9,3396.8,0.29485]
[1735476589928,3.6619,3396.9,3396.8,0.29485]
[1735476591433,3.95674,3396.9,3396.8,0.29485]
[1735476592634,9.74144427,3396.9,3396.8,0.29485]
[1735476594229,9.44660427,3396.9,3396.8,0.29485]
[1735476594535,9.74144427,3396.9,3396.8,0.29485]
[1735476595133,3.95674,3396.9,3396.8,0.29485]
[1735476595933,3.6619,3396.9,3396.8,0.29485]
[1735476599338,3.95674,3396.9,3396.8,0.29485]
[1735476599638,3.6619,3396.9,3396.8,0.29485]
[1735476600133,3.95674,3396.9,3396.8,0.29485]
[1735476600935,3.6619,3396.9,3396.5,1.158]
[1735476601138,0.29486,3396.7,3396.6,0.29486]
[1735476602331,3.6619,3396.9,3396.5,1.158]
[1735476602643,0.29486,3396.7,3396.6,0.29486]
[1735476603033,4.92270938,3396.7,3396.6,0.29486]
[1735476605339,4.92270938,3396.7,3396.6,0.29266409]
[1735476606240,4.62784938,3396.7,3396.6,0.29266409]
[1735476610240,4.62784938,3396.7,3396.6,41.09266409]
[1735476610746,3.4703034,3396.8,3396.7,0.29485]
[1735476612245,3.4703034,3396.8,3396.7,4.9312329]
[1735476613447,2.3131178,3396.8,3396.7,4.9312329]
[1735476614443,2.3131178,3396.8,3396.7,8.1390329]
[1735476614848,2.7672178,3396.9,3396.8,0.29485]
[1735476615842,2.7672178,3396.9,3396.7,15.49213945]
[1735476616046,3.0620578,3396.9,3396.8,1.45385]
[1735476616241,0.74894,3396.9,3396.8,4.6352572]
[1735476616446,0.74894,3396.9,3396.8,5.7942572]
[1735476616942,0.4541,3396.9,3396.8,6.0891072]
[1735476617351,5.08194938,3396.9,3396.8,1.45385]
[1735476618653,3.92109966,3396.9,3396.8,1.45385]
[1735476619348,4.21593966,3396.9,3396.8,1.159]
[1735476619545,4.21593966,3396.9,3396.8,0.4602]
[1735476619745,3.92109966,3396.9,3396.8,0.75505]
[1735476621156,0.74894,3396.9,3396.8,0.75505]
[1735476621353,0.4541,3396.9,3396.8,0.75505]
[1735476622352,5.07829755,3396.9,3396.8,0.75505]
[1735476625654,5.37313755,3396.9,3396.7,0.29485]
[1735476625857,5.37313755,3396.9,3396.8,1.16]
[1735476626251,0.74894,3396.9,3396.8,1.16]
[1735476627259,0.74894,3396.9,3396.8,1.45485]
[1735476627756,6.53364427,3396.9,3396.8,1.45485]
[1735476628551,9.74144427,3396.9,3396.8,1.45485]
[1735476629357,6.53364427,3396.9,3396.8,1.45485]
[1735476629760,9.74144427,3396.9,3396.8,1.45485]
[1735476630559,9.74144427,3396.9,3396.8,1.16]
[1735476631357,0.29485,3396.8,3396.7,1.16]
[1735476632153,0.29485,3396.8,3396.7,1.45485]
[1735476633747,4.92039658,3396.8,3396.7,1.45485]
[1735476634556,8.12819658,3396.8,3396.7,1.45485]
[1735476635248,3.50265,3396.8,3396.7,1.45485]
[1735476635652,0.29485,3396.8,3396.7,1.45485]
[1735476635847,3.50265,3396.8,3396.7,1.45485]
[1735476636654,3.2078,3396.8,3396.7,1.45485]
[1735476637860,7.83308164,3396.8,3396.7,1.45485]
[1735476646767,3.2078,3396.8,3396.7,1.45485]
[1735476649469,12.83264277,3396.8,3396.7,1.45485]
[1735476651671,9.62484277,3396.8,3396.7,1.45485]
[1735476657774,5.78470427,3396.8,3396.7,1.45485]
[1735476657975,3.89769816,3396.9,3396.8,0.29485]
[1735476658976,4.2695867,3396.9,3396.8,0.29485]
[1735476660174,10.05429097,3396.9,3396.8,0.29485]
[1735476660571,10.05429097,3396.9,3396.7,1.45485]
[1735476660773,0.29485,3396.8,3396.7,1.45485]
[1735476662471,9.92014097,3396.8,3396.7,1.45485]
[1735476663176,9.62529097,3396.8,3396.7,1.45485]
[1735476665477,9.62529097,3396.8,3396.4,45.43914611]
[1735476665672,0.29487,3396.5,3396.4,4.63914611]
[1735476666772,3.8405867,3396.5,3396.1,3.2078]
[1735476667073,0.8927,3396.4,3396.3,0.29489]
[1735476668582,0.4379,3396.4,3396.3,0.29489]
[1735476669879,0.4379,3396.4,3396.3,12.24990451]
[1735476670991,3.46836879,3396.5,3396.3,11.95501451]
[1735476671173,3.46836879,3396.5,3396.4,0.29488]
[1735476671375,3.46836879,3396.6,3396.5,0.29487]
[1735476671787,3.46836879,3396.6,3396.5,41.09487]
[1735476672884,3.46836879,3396.6,3396.5,44.30267]
[1735476673081,2.75483205,3396.8,3396.5,58.27543239]
[1735476673280,2.75483205,3396.8,3396.7,0.29485]
[1735476674178,0.4416,3396.8,3396.7,4.93264589]
[1735476675587,0.4416,3396.8,3396.7,6.08764589]
[1735476675887,0.4416,3396.8,3396.7,5.79279589]
[1735476675888,0.73645,3396.8,3396.7,5.79279589]
[1735476676890,4.55556011,3396.8,3396.7,1.155]
[1735476678787,4.26071011,3396.8,3396.1,4.63779589]
[1735476678991,0.29489,3396.3,3396.2,1.155]
[1735476679193,3.50269,3396.3,3396.2,1.155]
[1735476680095,3.50269,3396.3,3396.1,1.4509]
[1735476680286,1.3155,3396.2,3396.1,1.4509]
[1735476681592,1.3155,3396.2,3396.1,1.156]
[1735476681791,5.93690469,3396.2,3396.1,1.156]
[1735476682094,5.93690469,3396.2,3396.1,1.45091]
[1735476682692,1.3155,3396.2,3396.1,1.45091]
[1735476684496,1.3155,3396.2,3396.1,42.25091]
[1735476685292,3.62553831,3396.2,3396.1,42.25091]
[1735476686299,2.73253831,3396.2,3396.1,42.25091]
[1735476686607,0.4225,3396.2,3396.1,42.25091]
[1735476688206,0.4225,3396.2,3396.1,46.88870589]
[1735476688903,3.2078,3396.3,3396.1,46.59379589]
[1735476689207,2.31013175,3396.4,3396.3,0.29489]
[1735476690901,2.31013175,3396.4,3396.3,1.45289]
[1735476691103,3.18193175,3396.4,3396.3,1.45289]
[1735476691508,0.8718,3396.4,3396.3,6.09068589]
[1735476692912,0.8718,3396.4,3396.3,1.45289]
[1735476694112,4.33677409,3396.4,3396.3,1.45289]
[1735476698005,5.49320469,3396.4,3396.3,1.45289]
[1735476699008,0.8718,3396.4,3396.3,1.45289]
[1735476704412,5.49320469,3396.4,3396.3,1.45289]
[1735476709716,4.33595873,3396.4,3396.3,1.45289]
[1735476713317,3.46415873,3396.4,3396.3,1.45289]
[1735476715418,3.90355873,3396.5,3396.4,0.29488]
[1735476716419,3.90355873,3396.5,3396.4,0.75298]
[1735476719828,0.4394,3396.5,3396.4,0.75298]
[1735476720822,0.4394,3396.5,3396.4,0.29488]
[1735476722334,5.06080469,3396.5,3396.4,0.29488]
[1735476728937,5.35567469,3396.5,3396.4,1.155]
[1735476730438,5.06080469,3396.5,3396.4,1.44988]
[1735476730837,4.69585339,3396.5,3396.4,1.44988]
[1735476731733,0.8768,3396.5,3396.4,1.44988]
[1735476732339,3.81905339,3396.9,3396.4,1.155]
[1735476732547,4.24385339,3396.9,3396.8,0.29485]
[1735476733242,0.4248,3396.9,3396.8,0.29485]
[1735476734436,6.91739408,3397.1,3397.0,0.29483]
[1735476734634,9.59997546,3397.1,3397.0,0.29483]
[1735476735043,9.59997546,3397.1,3397.0,41.09483]
[1735476736066,3.46872241,3397.2,3397.1,0.29482]
[1735476736366,3.46872241,3397.2,3397.1,1.44982]
[1735476736551,3.46872241,3397.2,3397.1,1.155]
[1735476736944,4.62496322,3397.2,3397.1,1.155]
[1735476737147,5.05686322,3397.2,3397.1,1.155]
[1735476738443,0.4319,3397.2,3397.1,1.155]
[1735476739847,0.4319,3397.2,3397.1,1.44982]
[1735476740544,3.89721924,3397.2,3397.1,1.44982]
[1735476740742,3.46531924,3397.2,3397.1,1.44982]
[1735476741048,4.34241924,3397.2,3397.1,1.44982]
[1735476741641,4.34241924,3397.2,3397.1,1.155]
[1735476742346,4.63722924,3397.2,3397.1,1.155]
[1735476742644,4.34241924,3397.2,3397.1,1.155]
[1735476742943,4.34241924,3397.2,3397.1,1.44982]
[1735476743847,0.8771,3397.2,3397.1,1.44982]
[1735476746247,4.0849,3397.2,3397.1,1.44982]
[1735476746849,4.0849,3397.2,3397.1,0.29482]
[1735476747043,4.0849,3397.2,3397.1,1.45282]